bitfinex-derivatives/quotes_SOLF0:USTF0_20230105
["timestamp","ask_amount","ask_price","bid_price","bid_amount"]
[1672929361749,10.0,13.115,13.104,10.0]
[1672929362277,9.035e-05,13.114,13.105,0.06342427]
[1672929365013,9.035e-05,13.114,13.112,45.56]
[1672929365223,0.06075369,13.118,13.112,45.56]
[1672929365433,0.06595264,13.12,13.114,45.56]
[1672929365639,0.06256341,13.122,13.113,45.12]
[1672929365856,0.06256341,13.122,13.113,0.06004853]
[1672929365857,45.62256341,13.122,13.113,0.06004853]
[1672929366064,45.62256341,13.122,13.114,10.0]
[1672929366275,10.0,13.121,13.114,10.0]
[1672929366481,10.0,13.121,13.113,0.06004853]
[1672929366800,45.56,13.12,13.113,0.06004853]
[1672929367008,10.0,13.119,13.113,0.06004853]
[1672929367324,45.56,13.118,13.113,0.06004853]
[1672929367536,10.0,13.117,13.113,0.06004853]
[1672929368898,45.11,13.114,13.113,4.853e-05]
[1672929369212,45.11,13.114,13.107,10.0]
[1672929369526,10.0,13.113,13.101,45.43]
[1672929369844,10.0624272,13.113,13.104,10.06267061]
[1672929371411,0.0624272,13.113,13.104,10.06267061]
[1672929372044,0.0624272,13.113,13.104,0.06267061]
[1672929373211,0.0624272,13.113,13.104,10.06267061]
[1672929374260,0.0624272,13.113,13.104,0.06267061]
[1672929380672,0.14722517,13.104,13.102,10.0]
[1672929380881,10.0,13.112,13.103,10.0]
[1672929381619,10.07088282,13.112,13.103,10.070414]
[1672929383405,10.07088282,13.112,13.103,0.070414]
[1672929386762,0.07088282,13.112,13.104,15.22]
[1672929386976,0.00088282,13.112,13.104,15.22]
[1672929387189,15.22,13.115,13.105,10.0]
[1672929388237,15.28222698,13.115,13.105,10.0]
[1672929388980,10.0,13.114,13.105,10.0]
[1672929391287,15.28222698,13.115,13.105,10.0]
[1672929395076,0.06222698,13.115,13.107,15.22]
[1672929395387,0.06222698,13.115,13.105,10.0]
[1672929395388,0.00022698,13.115,13.109,15.14]
[1672929395809,0.00022698,13.115,13.11,10.0]
[1672929397597,0.00022698,13.115,13.112,15.13]
[1672929397807,0.06883003,13.118,13.113,10.0]
[1672929398023,15.22,13.131,13.117,15.13]
[1672929398331,10.0,13.13,13.12,15.14]
[1672929398539,10.0,13.13,13.121,10.0]
[1672929398749,15.22,13.126,13.114,15.13]
[1672929399068,10.06822264,13.125,13.115,10.07125459]
[1672929403575,0.06822264,13.125,13.115,10.07125459]
[1672929405375,10.06822264,13.125,13.115,10.07125459]
[1672929405793,0.06822264,13.125,13.115,10.07125459]
[1672929406109,0.00022264,13.125,13.116,15.17]
[1672929406422,0.00022264,13.125,13.119,15.19]
[1672929406626,0.00022264,13.125,13.12,10.0]
[1672929413882,0.00022264,13.125,13.123,10.0]
[1672929414091,15.15,13.133,13.123,10.0]
[1672929414310,15.15,13.133,13.123,10.06309847]
[1672929417355,15.22,13.135,13.123,25.20309847]
[1672929417668,15.22,13.135,13.124,0.0649226]
[1672929418306,15.10374261,13.135,13.124,0.0649226]
[1672929419884,15.13,13.137,13.125,15.13]
[1672929420196,15.13,13.137,13.126,10.06571584]
[1672929424292,59.3155,13.139,13.128,15.14]
[1672929424504,15.22,13.142,13.131,15.14]
[1672929424712,15.22,13.142,13.132,0.06125743]
[1672929425028,15.09,13.14,13.132,0.06125743]
[1672929425231,15.09,13.14,13.132,10.06125743]
[1672929425445,10.0,13.139,13.132,10.06125743]
[1672929425866,15.09,13.14,13.132,0.06125743]
[1672929430073,15.22,13.142,13.132,0.06125743]
[1672929430387,15.15436186,13.142,13.132,10.06125743]
[1672929434178,15.15,13.141,13.132,10.06125743]
[1672929434377,10.0,13.14,13.132,10.06125743]
[1672929435430,15.15,13.141,13.132,10.06125743]
[1672929439319,15.15,13.141,13.132,0.06125743]
[1672929439527,15.15,13.138,13.132,0.06125743]
[1672929439742,25.15,13.137,13.132,0.06125743]
[1672929440056,10.0,13.136,13.132,0.06125743]
[1672929440468,25.15,13.137,13.132,0.06125743]
[1672929441314,15.15,13.133,13.121,15.14]
[1672929442157,15.21843486,13.133,13.123,10.06840569]
[1672929443734,15.21843486,13.133,13.123,0.06840569]
[1672929443945,15.15,13.13,13.123,0.06840569]
[1672929444152,10.0,13.129,13.123,0.06840569]
[1672929444368,7.53,13.127,13.123,0.06840569]
[1672929446366,7.53,13.125,13.123,0.06840569]
[1672929446678,7.53,13.125,13.119,0.06798316]
[1672929447521,7.5950806,13.127,13.119,0.06798316]
[1672929449617,7.56,13.122,13.119,0.06798316]
[1672929449829,7.56,13.122,13.116,0.06303483]
[1672929450039,7.56,13.122,13.114,10.06079481]
[1672929450559,7.62815881,13.124,13.114,17.59079481]
[1672929450777,0.06815881,13.124,13.116,7.57]
[1672929451093,0.00015881,13.124,13.117,10.0]
[1672929452558,7.53,13.134,13.123,7.59]
[1672929452770,7.56,13.135,13.126,50.0]
[1672929452979,10.0,13.134,13.127,10.0]
[1672929455718,7.56,13.135,13.127,10.0]
[1672929461078,10.0,13.14,13.127,10.0]
[1672929461079,7.56,13.137,13.128,7.56]
[1672929461283,7.56,13.137,13.129,10.0]
[1672929462968,7.59,13.139,13.129,17.59]
[1672929463178,17.59,13.139,13.129,17.59]
[1672929465387,17.5215626,13.139,13.129,17.59]
[1672929466645,7.5215626,13.139,13.129,17.59]
[1672929478208,7.56,13.14,13.13,7.59]
[1672929478419,7.56,13.14,13.131,10.0]
[1672929479571,15.28,13.141,13.131,10.0]
[1672929479779,15.28,13.141,13.131,10.06350145]
[1672929480832,10.0,13.14,13.131,10.06350145]
[1672929481354,15.2,13.137,13.131,0.06350145]
[1672929482618,15.28,13.136,13.131,0.06350145]
[1672929483037,10.0,13.135,13.131,0.06350145]
[1672929484830,10.0,13.135,13.131,1.45e-06]
[1672929493872,15.28,13.133,13.131,1.45e-06]
[1672929494187,10.0,13.132,13.127,10.06338243]
[1672929494399,10.0,13.132,13.127,0.06338243]
[1672929496186,15.28,13.133,13.127,0.06338243]
[1672929497236,15.0556054,13.133,13.127,10.06338243]
[1672929497658,15.0556054,13.133,13.127,0.06338243]
[1672929498917,10.0,13.132,13.127,0.06338243]
[1672929502083,15.0556054,13.133,13.127,0.06338243]
[1672929505438,10.0,13.132,13.127,0.06338243]
[1672929505964,10.0,13.132,13.097,57.27]
[1672929505965,10.0,13.127,13.113,15.28]
[1672929506174,10.0,13.127,13.099,874.0]
[1672929506175,15.2,13.123,13.111,15.13]
[1672929506379,15.28,13.121,13.109,15.16]
[1672929506594,10.0,13.12,13.11,10.0]
[1672929507121,10.06538384,13.12,13.11,10.06761909]
[1672929507335,0.06538384,13.12,13.111,15.28]
[1672929507645,0.06538384,13.12,13.113,15.14]
[1672929507857,0.06538384,13.12,13.114,10.0]
[1672929508481,0.06538384,13.12,13.114,17.55]
[1672929510378,0.06538384,13.12,13.114,7.55]
[1672929511959,0.06538384,13.12,13.112,7.6]
[1672929512687,7.58,13.118,13.11,0.06761909]
[1672929514584,7.66538384,13.12,13.11,7.61761909]
[1672929515217,0.06538384,13.12,13.112,7.6]
[1672929517214,7.60538384,13.12,13.11,7.62761909]
[1672929519311,0.06538384,13.12,13.112,7.55]
[1672929526252,7.66538384,13.12,13.11,7.66761909]
[1672929526463,7.56,13.118,13.11,0.06761909]
[1672929526773,7.54,13.117,13.11,0.06761909]
[1672929526990,7.58,13.111,13.101,7.6]
[1672929527192,7.58,13.111,13.102,10.0]
[1672929528035,7.64929477,13.111,13.102,10.06137492]
[1672929530982,0.06929477,13.111,13.107,7.55]
[1672929531185,0.06929477,13.111,13.108,10.0]
[1672929531186,0.00029477,13.111,13.108,10.0]
[1672929531392,17.6,13.116,13.108,10.0]
[1672929532451,7.6,13.116,13.108,10.0]
[1672929532862,10.06662621,13.117,13.108,17.6]
[1672929533289,0.06662621,13.117,13.108,17.6]
[1672929534452,0.06662621,13.117,13.108,7.6]
[1672929534973,7.56,13.116,13.107,7.61832913]
[1672929535184,10.0,13.115,13.107,7.61832913]
[1672929536868,7.56,13.116,13.107,7.61832913]
[1672929537488,17.6,13.115,13.107,0.06832913]
[1672929537812,10.0,13.114,13.107,0.06832913]
[1672929540226,15.2,13.116,13.107,0.06832913]
[1672929540437,0.06662621,13.117,13.108,15.12]
[1672929540646,0.06662621,13.117,13.109,10.0]
[1672929541692,15.21,13.115,13.107,0.06832913]
[1672929541907,10.0,13.114,13.107,0.06832913]
[1672929542747,15.21,13.115,13.107,0.06832913]
[1672929544224,15.14296849,13.115,13.107,0.06832913]
[1672929544850,0.06662621,13.117,13.107,15.27832913]
[1672929545168,0.06662621,13.117,13.108,10.0]
[1672929548740,15.14,13.116,13.107,0.06832913]
[1672929548943,10.0,13.114,13.107,0.06832913]
[1672929550842,15.19,13.115,13.107,0.06832913]
[1672929551576,15.2,13.116,13.107,0.06832913]
[1672929552417,0.06662621,13.117,13.107,15.25832913]
[1672929552621,0.06662621,13.117,13.108,15.18]
[1672929553047,0.06662621,13.117,13.109,10.0]
[1672929555150,0.00062621,13.117,13.109,10.0]
[1672929557245,57.08,13.14,13.116,15.19]
[1672929557461,57.08,13.14,13.11,60.72]
[1672929557462,15.21,13.131,13.119,15.18]
[1672929557669,10.0,13.13,13.12,10.0]
[1672929558303,0.0626725,13.13,13.12,10.06083187]
[1672929561560,10.0626725,13.13,13.12,10.06083187]
[1672929561768,15.16,13.126,13.12,0.06083187]
[1672929562085,10.0,13.125,13.12,0.06083187]
[1672929562717,15.26223436,13.127,13.12,0.06083187]
[1672929564396,0.06223436,13.127,13.12,0.06083187]
[1672929565346,0.00023436,13.127,13.12,0.06083187]
[1672929565872,0.00023436,13.127,13.12,10.06083187]
[1672929568075,0.00023436,13.127,13.123,15.21]
[1672929568292,0.00023436,13.127,13.124,10.0]
[1672929568605,15.2,13.134,13.124,10.0]
[1672929568919,15.2,13.134,13.124,10.06356352]
[1672929569130,15.2,13.134,13.125,50.0]
[1672929569341,15.2,13.134,13.126,10.0]
[1672929571019,15.2,13.134,13.125,50.0]
[1672929571229,15.2,13.134,13.126,10.0]
[1672929571965,15.16,13.13,13.124,0.06356352]
[1672929572175,10.0,13.129,13.124,0.06356352]
[1672929576054,10.0,13.127,13.124,0.06356352]
[1672929576267,10.0,13.127,13.121,0.06111414]
[1672929576481,15.21,13.126,13.119,0.06177954]
[1672929576692,10.0,13.125,13.119,0.06177954]
[1672929582788,41.5356,13.131,13.12,45.41]
[1672929582999,41.5356,13.131,13.121,10.0]
[1672929583738,10.0,13.132,13.121,10.0]
[1672929583945,45.56,13.122,13.103,45.41]
[1672929584156,45.56,13.117,13.103,45.41]
[1672929584363,45.53,13.119,13.105,55.56]
[1672929584570,10.0,13.118,13.106,10.0]
[1672929584995,0.07093534,13.117,13.107,0.0683021]
[1672929585202,0.00093534,13.117,13.107,0.0683021]
[1672929585411,10.0,13.118,13.108,10.0]
[1672929588989,45.53,13.119,13.108,10.0]
[1672929589830,10.0,13.123,13.112,10.0]
[1672929590034,10.0,13.123,13.113,0.06340532]
[1672929593084,45.53,13.122,13.113,0.06340532]
[1672929593295,10.0,13.121,13.113,0.06340532]
[1672929596238,45.53,13.122,13.113,0.06340532]
[1672929596451,10.0,13.121,13.113,0.06340532]
[1672929597397,10.0,13.123,13.113,0.06340532]
[1672929597609,10.0,13.123,13.113,10.06340532]
[1672929599288,9.88223873,13.123,13.113,10.06340532]
[1672929601286,9.88223873,13.123,13.113,0.06340532]
[1672929601497,45.21,13.12,13.113,0.06340532]
[1672929601706,10.0,13.119,13.113,0.06340532]
[1672929602020,45.56,13.119,13.113,0.06340532]
[1672929602233,45.53,13.114,13.1,87.4397]
[1672929602443,45.56,13.11,13.101,10.0]
[1672929602751,10.0,13.109,13.101,10.0]
[1672929603594,10.0,13.109,13.1,0.06754889]
[1672929606538,45.12,13.108,13.1,0.06754889]
[1672929606949,10.0,13.107,13.1,0.06754889]
[1672929608644,45.56,13.106,13.1,0.06754889]
[1672929608849,10.0,13.105,13.1,0.06754889]
[1672929611475,45.12,13.104,13.1,0.06754889]
[1672929611688,10.0,13.103,13.1,0.06754889]
[1672929612004,45.53,13.102,13.097,0.06760702]
[1672929612209,10.0,13.101,13.095,0.06552418]
[1672929613690,55.56,13.101,13.095,0.06552418]
[1672929615053,45.12,13.099,13.095,0.06552418]
[1672929615260,45.21,13.096,13.095,0.06552418]
[1672929615474,45.21,13.096,13.08,45.56]
[1672929615687,45.56,13.092,13.079,45.56]
[1672929616210,10.0,13.091,13.08,10.0]
[1672929616415,45.12,13.089,13.081,0.06007983]
[1672929616628,45.53,13.085,13.081,0.06007983]
[1672929617053,45.56,13.087,13.081,0.06007983]
[1672929617263,10.0,13.086,13.084,50.0]
[1672929617578,10.0,13.086,13.081,0.06007983]
[1672929617781,45.21,13.085,13.081,0.06007983]
[1672929617998,10.0,13.084,13.074,50.0]
[1672929618207,45.41,13.083,13.068,10.0]
[1672929618419,45.41,13.083,13.074,50.0]
[1672929618629,45.21,13.082,13.074,50.0]
[1672929619046,45.56,13.08,13.073,0.06393608]
[1672929619259,10.0,13.079,13.074,50.0]
[1672929619473,0.06708964,13.081,13.074,50.0]
[1672929619674,8.964e-05,13.081,13.076,45.52]
[1672929619997,45.41,13.095,13.08,95.39]
[1672929620199,10.0,13.094,13.084,10.0]
[1672929620408,89.8274,13.098,13.085,45.39]
[1672929620829,0.0639859,13.096,13.087,0.06672153]
[1672929623141,45.12,13.093,13.087,0.06672153]
[1672929623356,45.53,13.091,13.087,0.06672153]
[1672929623566,45.53,13.091,13.087,0.00672153]
[1672929623781,10.0,13.09,13.087,0.00672153]
[1672929623985,10.0,13.09,13.081,584.0]
[1672929624190,45.41,13.088,13.075,629.56]
[1672929624405,10.0,13.087,13.076,10.0]
[1672929624616,0.06372983,13.086,13.077,0.06041665]
[1672929629562,45.53,13.083,13.077,0.06041665]
[1672929629768,10.0,13.082,13.077,0.06041665]
[1672929630294,45.53,13.083,13.077,0.06041665]
[1672929630604,10.0,13.082,13.077,0.06041665]
[1672929631767,45.53,13.083,13.077,0.06041665]
[1672929631982,10.0,13.082,13.077,0.06041665]
[1672929632502,45.53,13.083,13.077,0.06041665]
[1672929632711,10.0,13.082,13.077,0.06041665]
[1672929633132,10.0,13.084,13.077,0.06041665]
[1672929634180,45.53,13.085,13.077,0.06041665]
[1672929634396,10.0,13.084,13.077,0.06041665]
[1672929634606,0.06372983,13.086,13.077,0.06041665]
[1672929634813,10.06372983,13.086,13.077,0.06041665]
[1672929635545,0.06372983,13.086,13.077,0.06041665]
[1672929635970,45.56,13.087,13.086,0.13036576]
[1672929636182,45.56,13.087,13.086,6.576e-05]
[1672929640173,55.53,13.088,13.086,6.576e-05]
[1672929640695,45.53,13.088,13.086,6.576e-05]
[1672929643434,10.0,13.087,13.086,6.576e-05]
[1672929644062,55.53,13.088,13.086,6.576e-05]
[1672929644483,45.53,13.088,13.086,6.576e-05]
[1672929646059,10.0,13.087,13.086,6.576e-05]
[1672929648266,9.82676134,13.087,13.086,6.576e-05]
[1672929649739,43.2556,13.089,13.086,6.576e-05]
[1672929651312,10.0,13.088,13.086,6.576e-05]
[1672929652153,43.2556,13.089,13.086,6.576e-05]
[1672929654779,43.2556,13.089,13.082,0.07038258]
[1672929654985,10.06906634,13.091,13.082,0.07038258]
[1672929655196,0.06906634,13.091,13.083,50.0]
[1672929655409,53.39,13.097,13.083,60.0]
[1672929655831,53.48,13.095,13.083,10.0]
[1672929656040,53.48,13.092,13.078,53.33]
[1672929656252,10.0,13.091,13.079,10.0]
[1672929656462,10.0,13.091,13.08,0.06835629]
[1672929659710,63.48,13.092,13.08,0.06835629]
[1672929659920,53.48,13.092,13.08,0.06835629]
[1672929660875,10.0,13.093,13.08,0.06835629]
[1672929662031,55.81,13.093,13.08,45.87835629]
[1672929662244,55.81,13.093,13.081,10.0]
[1672929662971,45.81,13.093,13.081,10.0]
[1672929663602,45.78,13.091,13.081,10.0]
[1672929663927,10.0,13.09,13.081,10.06508861]
[1672929667703,45.78,13.091,13.081,10.06508861]
[1672929668228,45.54319158,13.091,13.081,10.06508861]
[1672929669069,10.0,13.09,13.081,10.06508861]
[1672929670538,10.0,13.09,13.081,0.06508861]
[1672929671171,45.81,13.088,13.081,0.06508861]
[1672929671478,137.65,13.088,13.081,8.861e-05]
[1672929671688,45.81,13.082,13.081,8.861e-05]
[1672929671901,45.81,13.082,13.067,45.81]
[1672929672112,45.81,13.08,13.068,10.0]
[1672929672535,10.0,13.079,13.069,0.0667783]
[1672929672850,10.06215067,13.079,13.069,0.0667783]
[1672929673261,0.06215067,13.079,13.069,0.0667783]
[1672929673472,0.06215067,13.079,13.072,45.81]
[1672929673900,0.06215067,13.079,13.073,10.0]
[1672929674312,0.06215067,13.079,13.071,10.0]
[1672929674523,0.06215067,13.079,13.069,0.0667783]
[1672929674943,45.84215067,13.079,13.069,0.0667783]
[1672929675162,10.0,13.078,13.069,0.0667783]
[1672929675582,45.81,13.076,13.069,0.0667783]
[1672929675787,45.81,13.071,13.059,42.425]
[1672929676000,45.81,13.071,13.06,10.0]
[1672929676211,10.0,13.07,13.06,10.0]
[1672929676633,10.0,13.074,13.063,50.0]
[1672929676844,0.06007246,13.075,13.065,45.8730981]
[1672929677051,0.06007246,13.075,13.066,10.1]
[1672929677472,0.06007246,13.075,13.066,0.1]
[1672929677677,10.06007246,13.075,13.066,0.1]
[1672929678633,45.78,13.074,13.066,0.1]
[1672929678947,10.06007246,13.075,13.066,0.1]
[1672929678948,45.81,13.072,13.066,0.1]
[1672929679580,10.0,13.071,13.066,0.1]
[1672929680843,45.81,13.072,13.066,0.1]
[1672929681157,10.0,13.071,13.066,0.1]
[1672929682623,10.0,13.069,13.066,0.1]
[1672929684098,0.06146547,13.072,13.066,0.1]
[1672929684099,45.87146547,13.072,13.066,0.1]
[1672929684415,0.06146547,13.072,13.066,0.1]
[1672929686201,0.06146547,13.072,13.066,45.68]
[1672929686407,0.06146547,13.072,13.066,0.1]
[1672929688933,0.00046547,13.072,13.066,0.1]
[1672929690822,45.81046547,13.072,13.066,0.1]
[1672929691027,10.0,13.071,13.066,0.1]
[1672929691243,55.81,13.071,13.066,0.1]
[1672929693026,0.00046547,13.072,13.066,0.1]
[1672929693236,0.00046547,13.072,13.059,88.235]
[1672929693554,45.81,13.069,13.056,45.64]
[1672929694077,10.0,13.068,13.057,10.0]
[1672929694293,0.0703317,13.067,13.058,0.07007974]
[1672929694604,45.81,13.066,13.058,0.07007974]
[1672929695235,10.0,13.065,13.058,0.07007974]
[1672929697337,45.78,13.064,13.058,0.07007974]
[1672929697549,10.0,13.063,13.058,0.07007974]
[1672929697756,10.0,13.063,13.049,45.81]
[1672929697757,45.81,13.062,13.049,45.81]
[1672929697968,45.81,13.059,13.05,10.0]
[1672929698496,10.0,13.058,13.05,10.0]
[1672929699126,10.0,13.058,13.049,0.07097025]
[1672929700277,10.0,13.056,13.049,0.07097025]
[1672929700695,10.0,13.058,13.049,0.07097025]
[1672929700696,0.06376009,13.059,13.049,0.07097025]
[1672929702595,0.06376009,13.059,13.049,45.71097025]
[1672929702905,45.81,13.066,13.053,45.81]
[1672929703126,10.0,13.065,13.054,10.0]
[1672929703861,0.06656309,13.064,13.055,0.06400232]
[1672929707646,0.06656309,13.064,13.055,45.70400232]
[1672929707853,0.06656309,13.064,13.056,10.0]
[1672929713105,45.78,13.068,13.056,10.0]
[1672929713319,45.49,13.069,13.056,55.81]
[1672929713625,55.81,13.071,13.058,45.81]
[1672929713840,10.0,13.071,13.06,45.67]
[1672929714053,10.0,13.071,13.062,45.81]
[1672929714266,0.06214158,13.07,13.063,10.0]
[1672929717838,0.00014158,13.07,13.063,10.0]
[1672929721312,45.49014158,13.07,13.062,10.0]
[1672929722778,45.49014158,13.07,13.061,10.06658986]
[1672929723619,10.0,13.069,13.061,10.06658986]
[1672929726143,45.49014158,13.07,13.061,10.06658986]
[1672929727925,45.78,13.068,13.061,0.06658986]
[1672929728132,10.0,13.067,13.061,0.06658986]
[1672929728979,10.0,13.065,13.061,0.06658986]
[1672929729715,45.81,13.066,13.061,0.06658986]
[1672929731605,45.81,13.068,13.061,0.06658986]
[1672929731819,10.0,13.067,13.061,0.06658986]
[1672929733079,45.81,13.064,13.061,0.06658986]
[1672929733288,10.0,13.063,13.058,0.06054423]
[1672929733500,10.0,13.063,13.056,0.07003698]
[1672929734865,45.81,13.062,13.056,0.07003698]
[1672929735079,55.81,13.061,13.056,0.07003698]
[1672929735390,10.0,13.06,13.056,0.07003698]
[1672929736441,45.81,13.059,13.056,0.07003698]
[1672929736759,45.81,13.057,13.053,0.06710264]
[1672929737076,45.81,13.057,13.05,0.06292473]
[1672929737281,45.81,13.057,13.049,0.06902593]
[1672929737494,45.81,13.057,13.048,0.06767286]
[1672929737703,10.0,13.056,13.048,0.06767286]
[1672929742220,10.0,13.056,13.048,10.06767286]
[1672929742855,10.0,13.056,13.049,2.81051853]
[1672929743274,55.81,13.056,13.048,0.06767286]
[1672929744328,10.0,13.056,13.048,0.06767286]
[1672929745168,0.06175755,13.058,13.05,45.67]
[1672929745379,0.00075755,13.058,13.051,10.0]
[1672929745585,10.0,13.061,13.051,12.81051853]
[1672929746114,10.0,13.061,13.052,2.81051853]
[1672929746534,10.0,13.061,13.052,2.88040406]
[1672929747589,55.81,13.061,13.052,2.88040406]
[1672929748521,55.81,13.061,13.052,0.06988553]
[1672929751682,45.49,13.059,13.052,0.06988553]
[1672929752201,10.0,13.058,13.052,0.06988553]
[1672929755989,45.81,13.057,13.052,0.06988553]
[1672929756727,10.0,13.056,13.052,0.06988553]
[1672929760298,45.81,13.057,13.052,0.06988553]
[1672929760503,10.0,13.055,13.047,2.81051853]
[1672929761244,10.0,13.058,13.047,2.81051853]
[1672929761560,0.06799721,13.057,13.048,45.88091164]
[1672929761769,0.00099721,13.057,13.048,45.88091164]
[1672929761982,0.00099721,13.057,13.049,10.0]
[1672929762194,0.00099721,13.057,13.049,12.81051853]
[1672929762714,0.00099721,13.057,13.05,2.81051853]
[1672929764811,0.00099721,13.057,13.052,45.81]
[1672929765027,0.00099721,13.057,13.053,10.0]
[1672929765234,0.00099721,13.057,13.053,12.81051853]
[1672929765759,0.00099721,13.057,13.054,2.81051853]
[1672929765969,10.0,13.064,13.054,2.81051853]
[1672929766179,10.0,13.064,13.054,2.87862044]
[1672929766389,45.49,13.065,13.054,2.87862044]
[1672929767125,89.0494,13.07,13.058,10.0]
[1672929767336,89.0494,13.07,13.059,0.06466521]
[1672929768799,10.0,13.069,13.059,0.06466521]
[1672929769221,45.81,13.068,13.059,0.06466521]
[1672929769429,45.49,13.063,13.059,0.06466521]
[1672929769848,10.0,13.062,13.059,0.06466521]
[1672929770058,10.0,13.062,13.056,2.87784214]
[1672929770385,10.0,13.062,13.056,0.06699176]
[1672929771433,55.78,13.062,13.056,0.06699176]
[1672929776054,10.0,13.062,13.056,9.176e-05]
[1672929776258,10.0,13.062,13.042,50.0]
[1672929776471,45.81,13.057,13.044,45.81]
[1672929776681,45.81,13.059,13.045,45.58]
[1672929776893,45.81,13.059,13.045,48.3909679]
[1672929777102,10.0,13.058,13.046,10.0]
[1672929777308,0.06370422,13.057,13.047,0.06822478]
[1672929777938,0.06370422,13.057,13.047,2.87919268]
[1672929779623,0.06370422,13.057,13.047,48.68919268]
[1672929779836,0.06370422,13.057,13.048,10.0]
[1672929781099,10.0,13.058,13.048,10.0]
[1672929781620,10.0,13.059,13.049,45.58]
[1672929781941,10.0,13.062,13.051,45.81]
[1672929782143,88.309,13.066,13.053,45.58]
[1672929782352,42.499,13.066,13.056,45.67]
[1672929782767,42.499,13.066,13.057,10.0]
[1672929783822,10.0,13.065,13.057,10.0]
[1672929784771,55.81,13.065,13.055,10.06826809]
[1672929784983,45.78,13.064,13.055,0.06826809]
[1672929785192,10.0,13.063,13.055,0.06826809]
[1672929785401,45.81,13.062,13.055,0.06826809]
[1672929785612,10.0,13.061,13.055,0.06826809]
[1672929789498,45.81,13.062,13.055,0.06826809]
[1672929791176,42.499,13.066,13.055,0.06826809]
[1672929791386,42.499,13.066,13.055,10.06826809]
[1672929792234,10.0,13.065,13.055,10.06826809]
[1672929793806,55.78,13.065,13.055,0.06826809]
[1672929794019,45.49,13.063,13.055,0.06826809]
[1672929794227,10.0,13.062,13.055,0.06826809]
[1672929794439,9.82776896,13.062,13.055,0.06826809]
[1672929796113,55.81,13.065,13.055,0.06826809]
[1672929796330,55.81,13.068,13.055,45.73826809]
[1672929796545,55.81,13.068,13.056,10.0]
[1672929797797,10.0,13.068,13.058,45.81]
[1672929798005,45.49,13.07,13.059,10.0]
[1672929798325,10.0,13.071,13.059,55.81]
[1672929803679,45.81,13.065,13.059,10.0]
[1672929803887,45.81,13.062,13.058,0.063561]
[1672929804097,45.81,13.062,13.031,57.56]
[1672929804312,10.0,13.061,13.049,45.67]
[1672929805049,10.0,13.061,13.05,0.06900001]
[1672929805366,0.06532395,13.06,13.051,45.58]
[1672929805572,0.06532395,13.06,13.052,10.0]
[1672929810088,0.06532395,13.06,13.051,45.58]
[1672929810511,0.06532395,13.06,13.05,0.06900001]
[1672929811041,0.06532395,13.06,13.05,10.06900001]
[1672929811457,0.06532395,13.06,13.05,0.06900001]
[1672929812933,0.06532395,13.06,13.05,10.06900001]
[1672929813669,45.84532395,13.06,13.05,0.06900001]
[1672929813879,10.0,13.059,13.05,0.06900001]
[1672929818712,87.70712395,13.06,13.05,0.06900001]
[1672929818922,10.0,13.059,13.05,0.06900001]
[1672929823231,41.92712395,13.06,13.051,15.34]
[1672929823647,41.92712395,13.06,13.052,10.0]
[1672929824068,0.06532395,13.06,13.052,10.0]
[1672929825854,10.06532395,13.06,13.052,10.0]
[1672929826065,10.06532395,13.06,13.05,10.06900001]